bitfinex-derivatives/quotes_SOLF0:USTF0_20260310
["timestamp","ask_amount","ask_price","bid_price","bid_amount"]
[1773163994251,6.48718183,88.599,88.521,5.87138519]
[1773163994847,6.48718183,88.599,88.52,8.76375367]
[1773163994848,6.48718183,88.596,88.551,10.162]
[1773163995549,6.48718183,88.596,88.54,5.95509273]
[1773163995550,6.48718183,88.594,88.543,10.162]
[1773163995744,6.48718183,88.594,88.54,5.95509273]
[1773163996946,10.157,88.593,88.543,10.162]
[1773163997154,6.48718183,88.592,88.509,5.91317155]
[1773163998347,10.158,88.581,88.533,10.164]
[1773163998554,6.48718183,88.592,88.534,5.81821622]
[1773163999152,6.48718183,88.592,88.548,10.162]
[1773163999153,10.157,88.59,88.548,10.162]
[1773163999352,6.94682522,88.589,88.534,5.81821622]
[1773163999756,6.94682522,88.58,88.529,10.164]
[1773163999952,6.94682522,88.58,88.519,5.80279332]
[1773164000350,6.94682522,88.58,88.535,10.163]
[1773164002253,10.157,88.592,88.533,5.87459412]
[1773164002656,6.94682522,88.591,88.533,5.87459412]
[1773164003753,6.94682522,88.581,88.533,5.87459412]
[1773164006554,10.159,88.575,88.533,5.87459412]
[1773164007459,10.159,88.575,88.534,10.164]
[1773164008058,6.94682522,88.581,88.54,10.163]
[1773164008760,6.94682522,88.577,88.533,16.03859412]
[1773164009156,10.163,88.543,88.498,5.21236432]
[1773164009458,6.94682522,88.548,88.498,5.21236432]
[1773164010059,6.94682522,88.548,88.499,10.167]
[1773164010663,17.10882522,88.548,88.499,10.167]
[1773164010859,6.94682522,88.547,88.499,10.167]
[1773164012454,6.94682522,88.579,88.512,4.87545244]
[1773164013256,10.159,88.572,88.53,10.164]
[1773164013452,20.311,88.609,88.512,4.87545244]
[1773164013453,6.94682522,88.599,88.512,4.87545244]
[1773164014464,6.94682522,88.59,88.532,4.88033137]
[1773164014859,10.157,88.589,88.542,10.163]
[1773164016164,17.10382522,88.589,88.542,10.163]
[1773164016665,6.94682522,88.588,88.542,10.163]
[1773164016962,6.94682522,88.611,88.521,4.9061205]
[1773164017462,6.94682522,88.602,88.555,10.161]
[1773164017767,6.94682522,88.602,88.54,4.90622771]
[1773164017961,10.157,88.594,88.541,10.163]
[1773164018168,6.94682522,88.593,88.541,10.163]
[1773164019163,6.94682522,88.593,88.548,10.162]
[1773164020064,6.94682522,88.593,88.555,10.161]
[1773164020763,6.94682522,88.593,88.502,20.7148509]
[1773164020764,6.94682522,88.579,88.508,4.87266097]
[1773164021262,6.94682522,88.559,88.49,4.87266097]
[1773164021669,6.94682522,88.556,88.504,10.167]
[1773164022061,6.94682522,88.539,88.456,4.87268375]
[1773164022264,6.94682522,88.518,88.467,10.171]
[1773164022464,6.94682522,88.518,88.456,4.87268375]
[1773164022765,10.173,88.454,88.387,10.18]
[1773164023062,6.94682522,88.449,88.385,4.86314095]
[1773164023263,6.94682522,88.467,88.385,4.86314095]
[1773164023467,6.94682522,88.467,88.37,8.74861611]
[1773164023468,6.94682522,88.467,88.399,4.86316551]
[1773164024568,6.94682522,88.485,88.422,10.176]
[1773164024965,6.94682522,88.485,88.422,14.76489594]
[1773164025165,6.94682522,88.485,88.426,4.58889594]
[1773164026464,20.321,88.563,88.39,8.74861611]
[1773164026465,6.94682522,88.504,88.435,4.81435104]
[1773164027769,6.82100934,88.502,88.435,4.81435104]
[1773164027972,6.82100934,88.502,88.417,4.8152529]
[1773164028568,6.82100934,88.498,88.432,4.83847264]
[1773164029173,7.01839473,88.489,88.393,4.84627205]
[1773164029366,7.01839473,88.469,88.393,4.84627205]
[1773164030170,7.01839473,88.449,88.393,4.84627205]
[1773164030370,7.01839473,88.449,88.383,10.181]
[1773164030567,7.01839473,88.449,88.374,4.84582448]
[1773164030768,7.01839473,88.449,88.376,4.84582448]
[1773164031465,7.01839473,88.449,88.317,13.96285227]
[1773164031466,8.74861611,88.43,88.357,4.84579587]
[1773164031674,7.01839473,88.429,88.357,4.84579587]
[1773164032073,7.01839473,88.429,88.37,10.182]
[1773164032273,7.01839473,88.429,88.357,4.84579587]
[1773164032770,7.01839473,88.429,88.367,10.183]
[1773164034676,7.01839473,88.429,88.376,10.182]
[1773164037078,7.01839473,88.449,88.385,10.181]
[1773164039491,7.01839473,88.447,88.385,10.181]
[1773164040390,7.01839473,88.447,88.394,10.18]
[1773164040593,7.01839473,88.447,88.39,4.91860198]
[1773164041590,8.74861611,88.45,88.39,4.91860198]
[1773164041792,7.01839473,88.449,88.39,4.91860198]
[1773164042383,7.01839473,88.449,88.406,10.178]
[1773164042589,7.01839473,88.466,88.406,10.178]
[1773164043385,7.01839473,88.466,88.415,10.177]
[1773164043588,7.01839473,88.466,88.389,4.92281619]
[1773164043984,8.74861611,88.47,88.389,4.92281619]
[1773164043985,7.01839473,88.464,88.389,4.92281619]
[1773164044785,7.01839473,88.452,88.389,4.92281619]
[1773164044992,7.01839473,88.449,88.389,4.92281619]
[1773164046292,7.01839473,88.447,88.393,10.18]
[1773164047090,10.175,88.437,88.383,10.181]
[1773164047293,7.01839473,88.436,88.372,4.91565292]
[1773164048386,7.01839473,88.436,88.391,10.18]
[1773164048589,7.01839473,88.436,88.356,4.91547026]
[1773164048891,7.01839473,88.429,88.356,4.91547026]
[1773164049093,7.01839473,88.425,88.37,10.182]
[1773164049893,8.74861611,88.43,88.373,4.91549776]
[1773164050295,7.01839473,88.429,88.377,10.182]
[1773164050899,7.01839473,88.429,88.386,10.181]
[1773164051792,7.01839473,88.446,88.373,4.91549776]
[1773164052401,7.01839473,88.439,88.373,4.91549776]
[1773164053496,7.01839473,88.439,88.393,10.18]
[1773164053696,7.01839473,88.439,88.373,4.91549776]
[1773164054488,7.01839473,88.439,88.382,10.181]
[1773164056494,10.175,88.435,88.39,10.18]
[1773164056696,7.01839473,88.419,88.331,4.84917114]
[1773164056999,7.01839473,88.399,88.331,4.84917114]
[1773164057306,7.01839473,88.379,88.321,4.84917114]
[1773164057492,7.01839473,88.379,88.337,10.186]
[1773164057698,7.01839473,88.379,88.32,274.38237333]
[1773164058299,7.01839473,88.371,88.32,274.38237333]
[1773164058502,7.01839473,88.359,88.286,4.85804839]
[1773164058803,7.01839473,88.356,88.286,4.85804839]
[1773164059003,7.01839473,88.374,88.286,4.85804839]
[1773164059202,8.74861611,88.37,88.291,4.85323286]
[1773164059402,8.74861611,88.37,88.314,4.84627948]
[1773164059799,8.74861611,88.37,88.329,10.187]
[1773164060201,6.93702012,88.389,88.314,4.84627948]
[1773164060597,6.93702012,88.389,88.336,10.186]
[1773164061400,6.93702012,88.389,88.344,10.185]
[1773164063405,6.93702012,88.389,88.352,10.184]
[1773164063608,6.93702012,88.409,88.33,4.8581169]
[1773164064304,6.93702012,88.407,88.35,10.185]
[1773164064495,6.93702012,88.407,88.33,4.8581169]
[1773164064700,6.93702012,88.389,88.33,4.8581169]
[1773164068402,6.93702012,88.389,88.341,10.186]
[1773164070109,6.93702012,88.389,88.348,10.185]
[1773164070607,6.93702012,88.389,88.311,4.77895312]
[1773164070804,6.93702012,88.387,88.329,10.187]
[1773164071197,6.93702012,88.387,88.311,4.77895312]
[1773164072103,0.00070007,88.404,88.342,4.77274438]
[1773164072303,6.93702012,88.429,88.361,4.77274438]
[1773164072503,6.93702012,88.409,88.321,4.64897942]
[1773164072705,6.93702012,88.389,88.321,4.64897942]
[1773164073506,10.38617383,88.416,88.313,279.68782687]
[1773164073507,6.93702012,88.369,88.313,279.68782687]
[1773164073702,3.28033262,88.36,88.313,279.68782687]
[1773164073909,3.28033262,88.36,88.313,284.33074766]
[1773164074210,6.93702012,88.369,88.313,284.33074766]
[1773164074211,6.93702012,88.369,88.334,10.186]
[1773164074504,6.93702012,88.369,88.313,4.64292079]
[1773164074709,3.28033262,88.37,88.313,4.64292079]
[1773164075105,3.28033262,88.38,88.33,3.28033262]
[1773164075306,3.28033262,88.39,88.341,4.64104949]
[1773164075706,6.93702012,88.403,88.341,4.64104949]
[1773164076010,3.28033262,88.41,88.361,4.64104949]
[1773164076311,6.93702012,88.42,88.33,20.374]
[1773164076312,3.28033262,88.4,88.35,3.28033262]
[1773164076507,3.28033262,88.4,88.35,7.97302981]
[1773164076712,3.28033262,88.4,88.351,4.69269719]
[1773164077714,6.93702012,88.42,88.375,10.182]
[1773164077909,6.93702012,88.42,88.351,4.69269719]
[1773164078309,6.93702012,88.417,88.367,10.183]
[1773164079015,6.93702012,88.417,88.33,29.14986909]
[1773164079016,6.93702012,88.409,88.358,10.184]
[1773164079618,6.93702012,88.407,88.364,10.183]
[1773164079916,6.93702012,88.407,88.334,4.67724424]
[1773164081409,8.77586909,88.43,88.334,4.67724424]
[1773164081410,6.93702012,88.405,88.334,4.67724424]
[1773164082318,6.93702012,88.4,88.334,4.67724424]
[1773164082718,6.93702012,88.4,88.311,4.77785485]
[1773164083513,6.93702012,88.39,88.338,10.186]
[1773164084117,6.93702012,88.385,88.338,10.186]
[1773164085012,6.93702012,88.385,88.31,8.77586909]
[1773164085013,6.93702012,88.385,88.345,10.185]
[1773164085721,6.93702012,88.385,88.329,4.77242087]
[1773164085722,6.93702012,88.385,88.338,10.186]
[1773164086821,17.11802012,88.384,88.338,10.186]
[1773164087020,6.93702012,88.384,88.344,10.185]
[1773164088319,6.93702012,88.384,88.337,10.186]
[1773164088516,6.61235444,88.369,88.291,4.808016]
[1773164089317,6.28870867,88.368,88.306,4.80256867]
[1773164090722,6.28870867,88.389,88.306,4.80256867]
[1773164090913,6.28870867,88.389,88.311,4.80835407]
[1773164091115,6.28870867,88.389,88.333,4.80835407]
[1773164091714,6.28870867,88.389,88.353,10.184]
[1773164092024,6.28870867,88.389,88.333,4.80835407]
[1773164092720,6.28870867,88.388,88.311,4.85159387]
[1773164093124,6.28870867,88.388,88.336,10.186]
[1773164094435,10.181,88.38,88.336,10.186]
[1773164094823,10.181,88.38,88.288,20.77517618]
[1773164094824,8.77586909,88.37,88.294,4.79254687]
[1773164095028,6.28870867,88.392,88.294,4.79254687]
[1773164095327,20.356,88.41,88.301,4.79254687]
[1773164095328,6.28870867,88.379,88.301,4.79254687]
[1773164096331,6.28870867,88.379,88.328,10.187]
[1773164096830,6.28870867,88.364,88.309,10.189]
[1773164097029,6.28870867,88.364,88.299,4.83056406]
[1773164098431,6.28870867,88.364,88.316,10.189]
[1773164098630,6.28870867,88.359,88.281,4.86681114]
[1773164099132,6.28870867,88.347,88.296,10.191]
[1773164099328,6.28870867,88.347,88.281,4.86681114]
[1773164099731,6.28870867,88.347,88.303,10.19]
[1773164100334,6.28870867,88.365,88.294,4.92145857]
[1773164100536,6.28870867,88.359,88.271,4.92145857]
[1773164101031,6.28870867,88.339,88.271,4.92145857]
[1773164101430,10.186,88.338,88.289,10.192]
[1773164101625,6.28870867,88.337,88.271,4.92145857]
[1773164102036,20.8228425,88.385,88.231,4.9172086]
[1773164102037,6.28870867,88.319,88.231,4.9172086]
[1773164102329,6.28870867,88.299,88.231,4.9172086]
[1773164102533,6.28870867,88.285,88.231,4.9172086]
[1773164102727,6.28870867,88.285,88.204,4.9258229]
[1773164103130,6.28870867,88.285,88.234,10.198]
[1773164103836,6.28870867,88.285,88.224,10.199]
[1773164104033,6.28870867,88.303,88.225,4.92161947]
[1773164104528,6.28870867,88.269,88.207,5.04937471]
[1773164104729,6.28870867,88.269,88.19,5.04937471]
[1773164105737,6.28870867,88.269,88.21,10.201]
[1773164105939,6.28870867,88.269,88.19,5.04937471]
[1773164106130,6.28870867,88.269,88.211,5.04523512]
[1773164106330,6.28870867,88.289,88.211,5.04523512]
[1773164106737,6.28870867,88.289,88.228,10.199]
[1773164107033,6.28870867,88.289,88.211,5.04523512]
[1773164107238,6.28870867,88.309,88.234,5.0256959]
[1773164107834,6.28870867,88.307,88.215,5.02161354]
[1773164108133,6.28870867,88.279,88.215,5.02161354]
[1773164108835,6.28870867,88.277,88.196,5.01810737]
[1773164109033,8.77586909,88.31,88.196,5.01810737]
[1773164109034,6.28870867,88.259,88.196,5.01810737]
[1773164109433,6.28870867,88.277,88.196,5.01810737]
[1773164109832,6.28870867,88.277,88.201,5.01413275]
[1773164110027,6.28870867,88.277,88.231,10.198]
[1773164110633,6.28870867,88.298,88.24,10.197]
[1773164111036,6.28870867,88.289,88.221,5.01413275]
[1773164111336,6.28870867,88.286,88.219,10.2]
[1773164111732,6.28870867,88.268,88.209,10.201]
[1773164111932,6.28870867,88.268,88.203,4.98037162]
[1773164112140,6.28870867,88.247,88.185,4.97658748]
[1773164112540,6.28870867,88.267,88.185,4.97658748]
[1773164112937,6.28870867,88.263,88.194,10.203]
[1773164113136,8.24242962,88.301,88.185,4.97658748]
[1773164113137,6.28870867,88.249,88.185,4.97658748]
[1773164113439,6.28870867,88.228,88.166,10.206]
[1773164113637,6.28870867,88.209,88.143,4.76985862]
[1773164114233,6.28870867,88.209,88.144,10.209]
[1773164114434,8.77586909,88.19,88.123,4.86895587]
[1773164114638,6.28870867,88.189,88.123,4.86895587]
[1773164115738,6.28870867,88.209,88.142,10.209]
[1773164116245,6.28870867,88.209,88.152,10.208]
[1773164116438,6.28870867,88.209,88.153,4.89409177]
[1773164116945,6.28870867,88.209,88.161,10.207]
[1773164117247,6.28870867,88.209,88.131,4.89409177]
[1773164117743,6.28870867,88.229,88.15,4.88826841]
[1773164118136,6.28870867,88.229,88.151,4.88826841]
[1773164119046,6.28870867,88.249,88.17,4.47646407]
[1773164119342,6.24355295,88.299,88.171,4.47067854]
[1773164119536,6.24355295,88.276,88.196,4.47067854]
[1773164119734,6.24355295,88.259,88.196,4.47067854]
[1773164119933,6.24355295,88.259,88.177,4.47067854]
[1773164120134,6.24355295,88.257,88.177,4.47067854]
[1773164120537,6.24355295,88.257,88.151,4.4819744]
[1773164120743,158.513,88.308,88.151,4.4819744]
[1773164120744,6.24355295,88.238,88.151,4.4819744]
[1773164121136,6.24355295,88.232,88.174,10.205]
[1773164121341,6.24355295,88.232,88.151,4.4819744]
[1773164121945,6.24355295,88.232,88.173,10.205]
[1773164122241,6.24355295,88.232,88.151,4.4819744]
[1773164122443,8.77586909,88.26,88.154,10.207]
[1773164122444,6.24355295,88.213,88.154,10.207]
[1773164122641,10.34179317,88.306,88.151,4.4819744]
[1773164122839,6.24355295,88.264,88.191,4.45379479]
[1773164123547,6.24355295,88.264,88.21,10.201]
[1773164123747,6.24355295,88.264,88.191,4.45379479]
[1773164124249,6.24355295,88.264,88.208,10.201]
[1773164125544,6.24355295,88.264,88.153,20.415]
[1773164125545,6.24355295,88.259,88.171,4.43942405]
[1773164126546,20.38,88.305,88.151,4.49155719]
[1773164126547,6.24355295,88.239,88.151,4.49155719]
[1773164127442,6.24355295,88.219,88.13,4.48641753]
[1773164127648,29.16686909,88.26,88.13,4.48641753]
[1773164127649,6.24355295,88.199,88.13,4.48641753]
[1773164128453,6.24355295,88.199,88.112,4.4735249]
[1773164128747,6.24355295,88.198,88.142,10.209]
[1773164129149,6.24355295,88.198,88.131,4.4735249]
[1773164129654,6.24355295,88.216,88.131,4.4735249]
[1773164130348,8.77586909,88.22,88.131,4.4735249]
[1773164130349,6.24355295,88.214,88.148,10.208]
[1773164130548,6.24355295,88.199,88.131,4.4735249]
[1773164130853,6.24355295,88.199,88.113,4.45441612]
[1773164131048,6.24355295,88.185,88.127,10.21]
[1773164131254,6.24355295,88.185,88.113,4.45441612]
[1773164132054,6.24355295,88.185,88.126,10.211]
[1773164132247,6.24355295,88.185,88.113,4.45441612]
[1773164132956,6.24355295,88.185,88.13,10.21]
[1773164134354,6.24355295,88.204,88.131,4.5052231]
[1773164135453,6.24355295,88.201,88.148,10.208]
[1773164135952,6.24355295,88.201,88.131,4.5052231]
[1773164136159,6.24355295,88.201,87.872,556.56122832]
[1773164136160,6.24355295,88.189,88.113,4.53321127]
[1773164136458,6.24355295,88.189,88.081,4.51752623]
[1773164137053,6.24355295,88.175,88.117,10.212]
[1773164137953,8.82259947,88.19,88.117,10.212]
[1773164137954,6.24355295,88.172,88.117,10.212]
[1773164138151,6.24355295,88.172,88.125,10.211]
[1773164138352,15.06615242,88.19,88.101,4.48400114]
[1773164138551,6.24355295,88.218,88.121,4.48400114]
[1773164138750,6.24355295,88.218,88.156,4.48400114]
[1773164139058,6.24355295,88.218,88.12,8.82259947]
[1773164139059,6.24355295,88.209,88.136,4.48400114]
[1773164139258,6.24355295,88.209,88.144,10.209]
[1773164139462,6.24355295,88.209,88.136,4.48400114]
[1773164140458,6.24355295,88.209,88.161,10.207]
[1773164140659,6.24355295,88.229,88.141,4.54894038]
[1773164141851,6.24355295,88.229,88.16,4.54461262]
[1773164142656,6.24355295,88.249,88.179,4.47479957]
[1773164142854,6.24355295,88.249,88.181,4.47479957]
[1773164143056,6.24355295,88.249,88.209,10.201]
[1773164143258,6.24355295,88.27,88.201,4.47479957]
[1773164143556,8.82259947,88.29,88.201,4.47479957]
[1773164143761,6.24355295,88.289,88.201,4.47479957]
[1773164143955,6.24355295,88.289,88.221,4.47046383]
[1773164144559,6.24355295,88.289,88.233,10.198]
[1773164144759,6.24355295,88.289,88.221,4.47046383]
[1773164144955,6.24355295,88.31,88.241,4.09193399]
[1773164145164,6.24355295,88.31,88.221,4.09193399]
[1773164145358,181.38,88.329,88.221,4.09193399]
[1773164145359,6.24355295,88.308,88.221,4.09193399]
[1773164145559,6.24355295,88.306,88.221,4.09193399]
[1773164145760,15.74892456,88.305,88.221,4.09193399]
[1773164145958,6.24355295,88.303,88.221,4.09193399]
[1773164146159,6.24355295,88.301,88.221,4.09193399]
[1773164146459,6.24355295,88.299,88.221,4.09193399]
[1773164146654,9.50537161,88.298,88.221,4.09193399]
[1773164146859,8.82259947,88.31,88.221,4.09193399]
[1773164146860,6.24355295,88.295,88.221,4.09193399]
[1773164147055,6.24355295,88.289,88.2,4.04020411]
[1773164147359,6.75147634,88.287,88.2,4.04020411]
[1773164147563,6.75147634,88.285,88.2,4.04020411]
[1773164147758,6.75147634,88.283,88.2,4.04020411]
[1773164147961,6.75147634,88.268,88.202,10.202]
[1773164148161,6.75147634,88.266,88.202,10.202]
[1773164148363,6.75147634,88.264,88.202,10.202]
[1773164148561,6.75147634,88.259,88.192,10.203]
[1773164148768,6.75147634,88.249,88.179,4.03159315]
[1773164149065,9.50537161,88.248,88.179,4.03159315]
[1773164149265,9.50537161,88.247,88.179,4.03159315]
[1773164149462,9.50537161,88.246,88.179,4.03159315]
[1773164149658,9.50537161,88.245,88.179,4.03159315]
[1773164149861,9.50537161,88.244,88.179,4.03159315]
[1773164150056,9.50537161,88.243,88.179,4.03159315]
[1773164150261,9.50537161,88.242,88.179,4.03159315]
[1773164150461,9.50537161,88.241,88.179,4.03159315]
[1773164150665,8.82259947,88.27,88.179,4.03159315]
[1773164150666,9.50537161,88.24,88.179,4.03159315]
[1773164150965,9.50537161,88.239,88.179,4.03159315]
[1773164151168,9.50537161,88.238,88.213,10.201]
[1773164151367,9.50537161,88.237,88.213,10.201]
[1773164151570,9.50537161,88.236,88.171,4.27173587]
[1773164151761,9.50537161,88.235,88.171,4.27173587]
[1773164152069,9.52328368,88.234,88.171,4.27173587]
[1773164152268,0.00028368,88.233,88.208,10.201]
[1773164152469,6.77769754,88.256,88.208,10.201]
[1773164153366,8.82259947,88.27,88.219,10.2]
[1773164153865,6.77769754,88.269,88.219,10.2]
[1773164154070,6.77769754,88.269,88.209,10.201]
[1773164154266,6.77769754,88.269,88.171,4.28069793]
[1773164154470,6.77769754,88.267,88.198,10.202]
[1773164154677,6.77769754,88.249,88.198,10.202]
[1773164155175,6.77769754,88.249,88.151,4.28337724]
[1773164155374,6.77769754,88.229,88.151,4.28337724]
[1773164158175,6.77769754,88.229,88.174,10.205]
[1773164158382,6.77769754,88.219,88.131,4.27528603]
[1773164158879,6.77769754,88.199,88.131,4.27528603]
[1773164159077,6.77769754,88.199,88.105,4.3660593]
[1773164160277,6.77769754,88.199,88.152,10.208]
[1773164160477,8.82259947,88.25,88.126,4.47564424]
[1773164160478,6.77769754,88.219,88.126,4.47564424]
[1773164160884,6.77769754,88.219,88.171,10.205]
[1773164161474,6.77769754,88.219,88.145,4.47217094]
[1773164161971,8.82259947,88.25,88.121,172.85843921]
[1773164161972,6.77769754,88.249,88.161,4.47217094]
[1773164162783,6.77769754,88.249,88.212,10.201]
[1773164163483,6.77769754,88.249,88.183,4.55935266]
[1773164164276,6.77769754,88.247,88.183,4.55935266]
[1773164164481,6.77769754,88.245,88.163,4.70860948]
[1773164164678,6.77769754,88.245,88.14,14.01143921]
[1773164164679,6.77769754,88.229,88.144,4.70860948]
[1773164164985,6.77769754,88.224,88.144,4.70860948]
[1773164165280,6.77769754,88.222,88.161,4.70860948]
[1773164165481,9.40420761,88.221,88.161,4.70860948]
[1773164165677,6.77769754,88.222,88.161,4.70860948]
[1773164165678,9.40420761,88.22,88.161,4.70860948]
[1773164165985,6.77769754,88.218,88.141,4.70522302]
[1773164166185,6.77769754,88.209,88.141,4.70522302]
[1773164166379,6.77769754,88.207,88.158,10.207]
[1773164166578,6.77769754,88.205,88.158,10.207]
[1773164166778,9.40420761,88.204,88.158,10.207]
[1773164166986,9.40420761,88.203,88.158,10.207]
[1773164167282,9.40420761,88.203,88.141,4.70522302]
[1773164167283,9.40420761,88.202,88.165,10.206]
[1773164167485,9.40420761,88.201,88.141,4.70522302]
[1773164167684,9.40420761,88.2,88.141,4.70522302]
[1773164167880,9.40420761,88.199,88.163,10.206]
[1773164168080,9.40420761,88.198,88.163,10.206]
[1773164168281,9.40420761,88.197,88.141,4.70522302]
[1773164168483,0.00020761,88.196,88.176,10.205]
[1773164168784,0.00020761,88.196,88.141,4.70522302]
[1773164168785,6.77769754,88.224,88.141,4.70522302]
[1773164168986,6.77769754,88.224,88.176,10.205]
[1773164169588,6.77769754,88.224,88.16,4.8289059]
[1773164170080,6.77769754,88.224,88.194,10.203]
[1773164170278,6.77769754,88.224,88.16,4.8289059]
[1773164170686,6.77769754,88.249,88.16,4.8289059]
[1773164171781,6.77769754,88.269,88.2,4.82395438]
[1773164172483,6.77769754,88.249,88.158,4.86241789]
[1773164172793,6.77769754,88.245,88.158,4.86241789]
[1773164173286,6.77769754,88.245,88.206,10.201]
[1773164174082,6.77769754,88.245,88.214,10.2]
[1773164174284,6.77769754,88.264,88.181,4.85668563]
[1773164174484,6.77769754,88.264,88.184,4.89745522]
[1773164175085,6.77769754,88.264,88.231,10.198]
[1773164175487,6.77769754,88.264,88.202,4.89180545]
[1773164175883,6.77769754,88.289,88.22,4.89180545]
[1773164176991,6.77769754,88.289,88.246,10.197]
[1773164177588,6.77769754,88.289,88.254,10.196]
[1773164177787,6.77769754,88.289,88.22,4.89180545]
[1773164177788,6.77769754,88.289,88.221,4.81786609]
[1773164177986,6.77769754,88.289,88.201,4.81786609]
[1773164178190,6.77769754,88.289,88.239,10.197]
[1773164179089,6.77769754,88.286,88.23,10.198]
[1773164179686,6.77769754,88.286,88.238,10.198]
[1773164180490,9.0181751,88.285,88.238,10.198]
[1773164180795,6.13081947,88.283,88.238,10.198]
[1773164181093,6.13081947,88.281,88.238,10.198]
[1773164181294,6.13081947,88.279,88.238,10.198]
[1773164181487,6.13081947,88.277,88.201,4.81786609]
[1773164181693,6.13081947,88.272,88.201,4.81786609]
[1773164181883,6.13081947,88.27,88.201,4.81786609]
[1773164182091,6.13081947,88.268,88.201,4.81786609]
[1773164182389,6.13081947,88.266,88.201,4.81786609]
[1773164182592,9.0181751,88.265,88.201,4.81786609]
[1773164182791,9.0181751,88.264,88.201,4.81786609]
[1773164182994,9.0181751,88.263,88.201,4.81786609]
[1773164183189,9.0181751,88.262,88.219,10.2]
[1773164183395,9.0181751,88.261,88.201,4.81786609]
[1773164183697,9.0181751,88.26,88.201,4.81786609]
[1773164183896,16.32281947,88.285,88.201,4.81786609]
[1773164183897,9.0181751,88.259,88.201,4.81786609]
[1773164184084,9.0181751,88.258,88.201,4.81786609]
[1773164184290,9.0181751,88.257,88.201,4.81786609]
[1773164184492,9.0181751,88.256,88.201,4.81786609]
[1773164184694,9.0181751,88.255,88.201,4.81786609]
[1773164184897,9.0181751,88.254,88.201,4.81786609]
[1773164185097,9.0181751,88.253,88.201,4.81786609]
[1773164185392,0.0001751,88.252,88.234,10.198]
[1773164185586,6.13081947,88.268,88.234,10.198]
[1773164186186,6.13081947,88.268,88.201,4.81786609]
[1773164186392,14.95341894,88.29,88.221,4.71959046]
[1773164186591,6.13081947,88.289,88.221,4.71959046]
[1773164187296,6.13081947,88.311,88.242,4.71429606]
[1773164188096,6.13081947,88.309,88.223,4.71426822]
[1773164188600,6.13081947,88.297,88.244,10.197]
[1773164191296,8.82259947,88.31,88.231,4.73549399]
[1773164191495,6.13081947,88.315,88.231,4.73549399]
[1773164191697,8.82259947,88.33,88.255,4.73089879]
[1773164191895,6.13081947,88.338,88.255,4.73089879]
[1773164192102,22.77613321,88.38,88.236,4.73089879]
[1773164192103,6.13081947,88.329,88.236,4.73089879]
[1773164192301,8.82259947,88.33,88.236,4.73089879]
[1773164192302,6.13081947,88.314,88.236,4.73089879]
[1773164192501,6.13081947,88.329,88.241,4.72407859]
[1773164193090,6.13081947,88.327,88.243,4.72407859]
[1773164193694,6.13081947,88.327,88.273,10.194]
[1773164194708,6.13081947,88.319,88.231,4.58480736]
[1773164194900,13.95353374,88.366,88.231,4.58480736]
[1773164194901,6.13081947,88.299,88.231,4.58480736]
[1773164195208,6.13081947,88.299,88.211,4.58480736]
[1773164195500,8.79223543,88.3,88.24,10.197]
[1773164195501,6.13081947,88.288,88.24,10.197]
[1773164196004,6.13081947,88.288,88.211,4.58480736]
[1773164196205,6.13081947,88.286,88.24,10.197]
[1773164197201,6.13081947,88.286,88.19,8.79223543]
[1773164197202,6.13081947,88.279,88.193,4.57246863]
[1773164197403,6.13081947,88.277,88.193,4.57246863]
[1773164197611,8.79223543,88.32,88.193,4.57246863]
[1773164197612,6.13081947,88.256,88.193,4.57246863]
[1773164197804,6.13081947,88.254,88.193,4.57246863]
[1773164198108,8.79223543,88.26,88.163,20.413]
[1773164198109,6.13081947,88.241,88.189,10.203]
[1773164198297,10.197,88.242,88.189,10.203]
[1773164198298,6.13081947,88.239,88.189,10.203]
[1773164198503,6.13081947,88.239,88.157,281.23552283]
[1773164198703,6.13081947,88.219,88.157,281.23552283]
[1773164199204,6.13081947,88.219,88.158,4.54311837]
[1773164200409,6.13081947,88.217,88.158,4.54311837]
[1773164200603,8.61832159,88.216,88.158,4.54311837]
[1773164200803,8.61832159,88.215,88.158,4.54311837]
[1773164201104,6.13081947,88.213,88.162,10.206]
[1773164201306,6.13081947,88.211,88.162,10.206]
[1773164201500,6.13081947,88.211,88.158,10.207]
[1773164201702,6.13081947,88.209,88.158,10.207]
[1773164204104,6.13081947,88.209,88.11,8.79223543]
[1773164204105,8.79223543,88.18,88.102,11.76984995]
[1773164204509,8.79223543,88.16,88.071,11.70252696]
[1773164204707,8.61832159,88.178,88.091,11.70252696]
[1773164204904,8.79223543,88.14,88.054,11.70252696]
[1773164205309,8.61832159,88.175,88.054,11.70252696]
[1773164205512,8.79223543,88.14,88.054,11.70252696]